Cogmind - Beta 10.2 @@@ ROGUE MODE // 2021.02.15 @ 20:07:45 Player: aperiodic Result: Self-destructed Performance ------------- Evolutions (5) 2500 Regions Visited (23) 4600 Robots Destroyed (194) 970 Value Destroyed (5169) 5169 Prototype IDs (80) 1600 Alien Tech Used (0) 0 Bonus (2206) 2206 TOTAL SCORE: 17045 Bonus ------- High Alert Combat Kills 228 Follower Combat Kills 176 Aligned with FarCom 300 Met Data Miner 300 Met Imprinter 300 Destroyed Z-Imprinter 1000 Friendly Fire -98 Cogmind --------- Core Integrity 1000/1000 Matter 171/300 Energy 147/150 System Corruption 0% Temperature Cool (3) Movement Flying (27) Location -5/Factory Parts ------- > --- POWER (2) -------- Micro Nuclear Core Zionite Light DM Reactor > --- PROPULSION (4) --- Improved Cesium-ion Thruster Experimental Cesium-ion Thruster Field Propulsion Array > --- UTILITY (9) ------ Experimental Cooling System Lightpack 2.0 Experimental Sensor Array Experimental Signal Interpreter Experimental Utility Shielding Zionite Light Carapace Advanced Hacking Suite System Shield > --- WEAPON (2) ------- Mini Smartbomb Launcher > --- INVENTORY (24) --- Improved VTOL Module Improved VTOL Module Field Propulsion Array Fusion Compressor Zionite Biocell (1000) Zionite Biocell (1000) Gravity Neutralizing Apparatus Surveybot 24 Scanner Surveybot 24 Chip Experimental Targeting Computer Zionite Light Carapace Makeshift Hacking Suite Makeshift Hacking Suite Makeshift Hacking Suite AWS/Thermal 8R-AWN's Boregun 8R-AWN's Boregun Advanced EMP Blaster Greatsword Peak State ------------ > --- POWER ------------ Micro Nuclear Core Zionite Light DM Reactor > --- PROPULSION ------- Improved Cesium-ion Thruster Experimental Cesium-ion Thruster Field Propulsion Array > --- UTILITY ---------- Experimental Cooling System Lightpack 2.0 Experimental Sensor Array Experimental Signal Interpreter Experimental Utility Shielding Advanced Hacking Suite System Shield > --- WEAPON ----------- Zionite Phaser-S Mini Smartbomb Launcher > --- INVENTORY -------- Improved VTOL Module Improved VTOL Module Field Propulsion Array Fusion Compressor Zionite Biocell Zionite Biocell Gravity Neutralizing Apparatus Surveybot 24 Scanner Surveybot 24 Chip Experimental Targeting Computer Zionite Light Carapace Zionite Light Carapace Makeshift Hacking Suite Makeshift Hacking Suite Makeshift Hacking Suite AWS/Thermal 8R-AWN's Boregun 8R-AWN's Boregun Advanced EMP Blaster Greatsword [Rating: 120] Favorites ----------- Power Micro Nuclear Core Engine Ion Engine Power Core Micro Nuclear Core Reactor Zionite Light DM Reactor Propulsion Advanced Treads Treads Advanced Treads Wheel Wheel Flight Unit Improved VTOL Module Utility System Shield Device Experimental Sensor Array Storage Medium Storage Unit Processor Advanced Signal Interpreter Hackware System Shield Protection Light Armor Plating Weapon Assault Rifle Energy Gun AWS/Thermal Energy Cannon Advanced Beam Cannon Ballistic Gun Assault Rifle Ballistic Cannon Mini Assault Cannon Launcher Mini Smartbomb Launcher Slashing Weapon Greatsword Build | -11 -10 -10 -9 -9 -9 -8 -8 -7 -7 -7 -7 -7 -7 -6 -6 -6 -6 -6 -6 -6 -6 -5 -5 ------- Run | Scr Mat Min Mat Min Exi Min Mat Fac Was Fac Low Low Dat Pro Fac Was Fac Low Low Zio Dee Pro Fac Slots Evolved 10 | . . . 2 . . . 2 2 . . . . . . 2 . . . . . . . 2 Power 1 | . . . . . . . . . . . . . . . 1 . . . . . . . . Propulsion 2 | . . . . . . . 1 . . . . . . . 1 . . . . . . . . Utility 7 | . . . 2 . . . 1 2 . . . . . . . . . . . . . . 2 Weapon . | . . . . . . . . . . . . . . . . . . . . . . . . Parts Attached 241 | 7 25 2 25 2 27 4 38 11 1 17 4 4 . 9 23 . 20 1 1 . 17 1 2 Power 20 | 1 2 . 2 . 5 . 2 2 . 1 . . . . 2 . 2 . . . 1 . . Engine 11 | 1 2 . 2 . 1 . 2 2 . . . . . . 1 . . . . . . . . Core 7 | . . . . . 3 . . . . 1 . . . . 1 . 2 . . . . . . Reactor 2 | . . . . . 1 . . . . . . . . . . . . . . . 1 . . Propulsion 52 | 3 18 1 5 . 5 . 5 3 . 2 . . . . 5 . 4 . . . 1 . . Treads 26 | . 10 1 5 . 5 . 5 . . . . . . . . . . . . . . . . Leg . | . . . . . . . . . . . . . . . . . . . . . . . . Wheel 11 | 3 8 . . . . . . . . . . . . . . . . . . . . . . Hover . | . . . . . . . . . . . . . . . . . . . . . . . . Flight 15 | . . . . . . . . 3 . 2 . . . . 5 . 4 . . . 1 . . Utility 88 | 1 1 . 11 2 11 1 6 4 1 12 4 4 . 7 3 . 6 1 . . 10 1 2 Device 24 | . . . 1 1 2 . 1 . . 3 2 2 . 4 1 . 2 1 . . 2 1 1 Storage 17 | 1 1 . 7 . 5 . . 1 . . . . . . . . . . . . 2 . . Processor 3 | . . . . . 1 . . . . 1 . . . . . . 1 . . . . . . Hackware 6 | . . . . . . . 1 3 . . . . . . 1 . 1 . . . . . . Protection 38 | . . . 3 1 3 1 4 . 1 8 2 2 . 3 1 . 2 . . . 6 . 1 Artifact . | . . . . . . . . . . . . . . . . . . . . . . . . Weapon 81 | 2 4 1 7 . 6 3 25 2 . 2 . . . 2 13 . 8 . 1 . 5 . . Energy Gun 17 | 1 . 1 2 . 1 . 5 . . 1 . . . 1 2 . 1 . 1 . 1 . . Energy Cannon 2 | . . . 1 . . . . . . . . . . . . . . . . . 1 . . Ballistic Gun 21 | 1 4 . 2 . 2 2 8 . . . . . . . 2 . . . . . . . . Ballistic Cannon 7 | . . . . . . . 4 . . . . . . . 1 . 2 . . . . . . Launcher 14 | . . . . . 1 1 5 1 . . . . . 1 2 . 2 . . . 1 . . Special Weapon . | . . . . . . . . . . . . . . . . . . . . . . . . Impact Weapon . | . . . . . . . . . . . . . . . . . . . . . . . . Slashing Weapon 20 | . . . 2 . 2 . 3 1 . 1 . . . . 6 . 3 . . . 2 . . Piercing Weapon . | . . . . . . . . . . . . . . . . . . . . . . . . Special Melee Weapon . | . . . . . . . . . . . . . . . . . . . . . . . . Unidentified Prototypes 12 | . . . . 1 4 . 2 . . . . . . . . . . . . . 5 . . Parts Lost 21 | . 1 . 5 . 2 2 3 2 . 1 . . . 1 . . 2 . . . 1 . 1 Power 5 | . 1 . 1 . . . . 1 . . . . . . . . 1 . . . 1 . . Propulsion 4 | . . . 1 . . . 2 . . . . . . . . . 1 . . . . . . Utility 8 | . . . 2 . 2 . 1 1 . 1 . . . 1 . . . . . . . . . Weapon 4 | . . . 1 . . 2 . . . . . . . . . . . . . . . . 1 Highest Loss Streak 2 | . 1 . 2 . 2 2 2 1 . 1 . . . 1 . . 1 . . . 1 . 1 Average Slot Usage (%) 86 | . 98 100 97 100 88 80 81 82 82 79 76 76 76 82 79 80 80 86 86 86 78 86 78 Engine 4 | . 13 14 11 11 3 . 1 7 7 . . . . . 6 6 . . . . . . . Core 5 | . . . . . 7 11 7 . . 6 7 7 7 7 6 6 11 13 13 13 6 6 5 Treads 15 | . 14 28 21 22 22 22 26 5 . . . . . . . . . . . . . . . Flight 6 | . . . . . . . . 17 23 19 15 15 15 15 20 20 21 26 26 26 20 20 17 Device 2 | . . . 1 . 4 . . . . 3 3 4 . 6 5 6 3 6 6 6 . 6 8 Storage 15 | . 27 28 31 33 18 18 9 7 7 7 7 7 7 7 6 6 6 6 6 6 4 6 5 Processor 3 | . . . . . 8 7 . . . 5 7 7 7 7 6 6 6 6 6 6 6 6 5 Hackware 6 | . . . . . . . 7 24 23 20 15 15 15 15 17 20 20 13 13 13 13 13 11 Protection 6 | . . . 8 11 7 3 11 8 13 6 10 10 15 7 2 . 1 6 6 6 11 6 6 Energy Gun 3 | . . 1 4 . 4 . 5 . . 2 . . . 5 . . . . 5 6 2 6 2 Ballistic Gun 9 | . 27 26 13 22 11 13 8 . . . . . . . . . . . . . . . . Slashing Weapon 1 | . . . . . . . . 3 7 4 7 7 7 1 5 6 5 6 . . 1 . . Naked Turns . | . . . . . . . . . . . . . . . . . . . . . . . . Heaviest Build 125 | 12 21 22 74 73 118 120 125 101 15 23 21 20 20 24 29 21 26 24 27 27 38 32 33 Greatest Support 64 | 26 40 40 44 44 44 42 64 62 18 29 29 29 29 29 37 37 37 27 27 27 38 38 38 Greatest Overweight (x) 37 | . 1 . 2 1 37 2 5 1 . . . . . . . . . . . . 2 . . Average Overweight (x) . | . . . . 1 1 2 1 . . . . . . . . . . . . . . . . Largest Inventory Capacity 44 | 6 10 10 22 22 30 24 24 44 24 24 24 24 24 24 24 24 24 24 24 24 24 24 24 Average Capacity 20 | 5 9 10 17 22 19 24 24 24 24 24 24 24 24 24 24 24 24 24 24 24 19 24 24 Most Carried 24 | 6 10 10 22 22 24 24 24 24 21 24 24 24 24 24 24 24 24 21 23 23 24 24 24 Average Carried 19 | 3 9 9 15 21 17 23 23 19 19 21 24 24 24 23 23 23 21 20 22 23 18 24 23 Final Capacity 24 | 6 10 10 22 22 24 24 24 24 24 24 24 24 24 24 24 24 24 24 24 24 24 24 24 Final Carried 24 | 6 10 10 22 22 24 24 24 18 20 24 24 24 24 23 24 24 21 21 23 23 24 24 22 Class Distribution -------------------- 46% | Hauler-Mutant 21% | Mutant 17% | Hacker-Sprinter 5% | Machinist-Sprinter 4% | Scavenger-Mutant 3% | Hauler-Sprinter Dominant Class ---------------- Mutant | -10/Materials Mutant | -10/Mines Hauler-Mutant | -9/Materials Hauler-Mutant | -9/Mines Hauler-Mutant | -9/Exiles Hauler-Mutant | -8/Mines Hauler-Mutant | -8/Materials Hacker-Sprinter | -7/Factory Hacker-Sprinter | -7/Waste Hacker-Sprinter | -7/Factory Hauler-Mutant | -7/Lower Caves Hauler-Mutant | -7/Lower Caves Hauler-Mutant | -7/Data Miner Hauler-Mutant | -6/Proximity Caves Hacker-Sprinter | -6/Factory Hacker-Sprinter | -6/Waste Hacker-Sprinter | -6/Factory Hacker-Sprinter | -6/Lower Caves Hacker-Sprinter | -6/Lower Caves Hacker-Sprinter | -6/Zion Machinist-Sprinter | -6/Deep Caves Machinist-Sprinter | -5/Proximity Caves Machinist-Sprinter | -5/Factory Resources | -11 -10 -10 -9 -9 -9 -8 -8 -7 -7 -7 -7 -7 -7 -6 -6 -6 -6 -6 -6 -6 -6 -5 -5 ----------- Run | Scr Mat Min Mat Min Exi Min Mat Fac Was Fac Low Low Dat Pro Fac Was Fac Low Low Zio Dee Pro Fac Matter Collected 5285 | 282 613 101 538 3 921 257 1189 141 20 125 74 46 . 151 317 19 202 39 56 . 165 . 26 Remotely . | . . . . . . . . . . . . . . . . . . . . . . . . Salvage Created 7564 | 147 770 185 1450 89 458 537 2121 120 . 323 . 43 . 127 462 . 452 . 27 . 218 . 35 Parts 466 | 12 48 12 93 1 68 23 119 4 . 22 . 3 . 6 14 . 16 . 3 . 18 . 4 Haulers Intercepted 13 | . 2 . 4 . . . 6 . . 1 . . . . . . . . . . . . . Recyclers Shooed 11 | 1 1 . 3 . . . 2 . . . . . . . 1 . 3 . . . . . . Parts Field Recycled . | . . . . . . . . . . . . . . . . . . . . . . . . Retrieved Matter . | . . . . . . . . . . . . . . . . . . . . . . . . Parts Self-Destructed 11 | . . . . . . . . . . . . 6 . 5 . . . . . . . . . Prevented . | . . . . . . . . . . . . . . . . . . . . . . . . Kills | -11 -10 -10 -9 -9 -9 -8 -8 -7 -7 -7 -7 -7 -7 -6 -6 -6 -6 -6 -6 -6 -6 -5 -5 ------- Run | Scr Mat Min Mat Min Exi Min Mat Fac Was Fac Low Low Dat Pro Fac Was Fac Low Low Zio Dee Pro Fac Combat Hostiles Destroyed 110 | . 13 5 24 1 5 8 33 2 . 4 . 1 . 5 . . 2 . 1 . 2 . 4 Melee 7 | . . . . . 1 . 2 . . 1 . 1 . . . . . . . . 2 . . Guns 66 | . 13 5 19 1 . 6 18 . . 3 . . . . . . . . 1 . . . . Cannons 11 | . . . 5 . . . 6 . . . . . . . . . . . . . . . . AOE 25 | . . . . . 4 2 7 1 . . . . . 5 . . 2 . . . . . 4 Classes Destroyed 20 | 2 5 1 3 1 2 1 1 . . 1 . . . . 1 . . . 1 . 1 . . Worker 16 | . 1 . 3 . . 2 5 . . . . . . . 3 . 2 . . . . . . Builder 5 | . . . 1 . . . 3 . . . . . . . . . 1 . . . . . . Tunneler 8 | 3 . 2 . . . 1 . . . . . . . . 1 . 1 . . . . . . Hauler 13 | . 2 . 4 . . . 6 . . 1 . . . . . . . . . . . . . Recycler 14 | 1 . . 2 1 . 1 4 . . . . . . . 2 . 3 . . . . . . Mechanic 1 | . . . . . . . . . . . . . . . 1 . . . . . . . . Operator 5 | . 2 . 1 . . . 2 . . . . . . . . . . . . . . . . Turret 1 | . . . . . 1 . . . . . . . . . . . . . . . . . . Watcher 16 | . 3 . 3 . . . 5 . . 2 . . . . 3 . . . . . . . . Swarmer 14 | . . 3 5 . . . . . . . . . . 2 . . . . . . . . 4 Grunt 56 | . 13 2 10 . . 7 18 2 . . . 1 . 3 . . . . . . . . . Brawler 3 | . . . . . . 1 2 . . . . . . . . . . . . . . . . Duelist 2 | . . . 2 . . . . . . . . . . . . . . . . . . . . Sentry 19 | . . . 7 . . . 10 . . 2 . . . . . . . . . . . . . Hunter 5 | . . . . . . . 3 . . . . . . . . . 2 . . . . . . Programmer 2 | . . . . . . . . . . 2 . . . . . . . . . . . . . Zionite 8 | . . . . . 8 . . . . . . . . . . . . . . . . . . Z-Technician 5 | . . . . . . . . . . . . . . . . . . . . . 5 . . Z-Light 2 | . . . . . . . . . . . . . . . . . . . . . 2 . . Master Thief 1 | . . . . . . . . . . . . . . . . . . . 1 . . . . Assembled 5 | . . . . 1 4 . . . . . . . . . . . . . . . . . . Best Kill Streak 7 | 3 2 3 4 2 7 5 7 2 . 2 . 1 . 3 3 . 3 . 1 . 5 . 4 Combat Bots Only 4 | . 2 3 3 1 4 3 4 2 . 1 . 1 . 3 . . 2 . 1 . 2 . 4 Max Kills in Single Turn 4 | 1 2 2 2 1 2 4 3 1 . 1 . 1 . 2 1 . 2 . 1 . 1 . 3 Gunslinging 1 | . 1 1 . . . . . . . . . . . . . . . . . . . . . Exploded 3 | . . . . . 2 1 2 1 . . . . . 2 . . 1 . . . . . 3 Melee 1 | . . . . . 1 . 1 . . 1 . 1 . . . . . . . . 1 . . Uniques/NPCs Destroyed 4 | . . . . . 4 . . . . . . . . . . . . . . . . . . 8R-AWN (-9/Exiles) EX-HEX (-9/Exiles) EX-BIN (-9/Exiles) EX-DEC (-9/Exiles) Combat | -11 -10 -10 -9 -9 -9 -8 -8 -7 -7 -7 -7 -7 -7 -6 -6 -6 -6 -6 -6 -6 -6 -5 -5 -------- Run | Scr Mat Min Mat Min Exi Min Mat Fac Was Fac Low Low Dat Pro Fac Was Fac Low Low Zio Dee Pro Fac Damage Taken 7370 | . 503 145 1134 34 786 635 2007 247 . 293 109 18 . 189 60 . 304 . . . 833 67 6 Core 832 | . 83 17 74 . 65 87 188 62 . 61 17 . . . 29 . 62 . . . 87 . . Absorbed by Shields 51 | . . . 51 . . . . . . . . . . . . . . . . . . . . Core Remaining (%) 71 | 100 . 60 . . . 43 65 . . . . . . 80 . . . . . . . 79 . Volleys Fired 480 | 12 63 14 93 3 56 29 148 3 . . . . . 9 8 . 10 . . . 22 . 10 Largest 2 | 2 2 2 2 2 2 2 2 1 . . . . . 1 1 . 1 . . . 1 . 1 Hottest 116 | 60 60 83 91 46 60 46 116 36 . . . . . 36 40 . 80 . . . 90 . 80 Shots Fired 929 | 24 126 28 185 6 107 52 281 3 . 27 . . . 9 12 . 17 . 20 . 22 . 10 Gun 789 | 24 126 28 159 6 102 46 223 . . 27 . . . . 9 . 7 . 20 . 6 . 6 Cannon 99 | . . . 26 . . . 48 . . . . . . . 2 . 7 . . . 16 . . Launcher 41 | . . . . . 5 6 10 3 . . . . . 9 1 . 3 . . . . . 4 Special . | . . . . . . . . . . . . . . . . . . . . . . . . Kinetic 610 | 12 123 27 93 6 102 46 187 . . . . . . . 7 . 7 . . . . . . Thermal 251 | . . 1 92 . . . 84 . . 27 . . . . 4 . 7 . 20 . 16 . . Explosive 37 | . . . . . 5 6 10 . . . . . . 9 1 . 2 . . . . . 4 Electromagnetic 19 | 12 3 . . . . . . 3 . . . . . . . . 1 . . . . . . Phasic 12 | . . . . . . . . . . . . . . . . . . . . . 6 . 6 Robot Hit Streak 23 | 8 11 11 23 4 7 19 21 1 . 19 . . . 4 5 . 6 . 3 . . . 1 Robot Miss Streak 4 | 3 3 2 4 2 4 1 2 2 . 2 . . . 1 1 . 2 . 4 . 1 . . Penetration Max 1 | . . . . . 1 . . . . . . . . . 1 . . . . . . . . Secondary Targets 6 | . 1 1 3 . . 1 . . . . . . . . . . . . . . . . . Max Gunslinging Chain 1 | . 1 1 1 . . 1 . . . . . . . . . . . . . . . . . Autonomous 58 | . . . . . . . . . . 27 . . . . 4 . 7 . 20 . . . . Shots Hit Robots 664 | 14 82 21 126 4 60 46 209 7 . 27 . 1 . 6 17 . 21 . 9 . 13 . 1 Core Hits 326 | 6 39 10 53 3 32 26 97 4 . 9 . 1 . 12 10 . 11 . 2 . 5 . 6 Critical Hits 37 | . . . 11 . 17 . 4 . . . . . . . 4 . . . . . 1 . . Critical Kills 15 | . . . 4 . 6 . 2 . . . . . . . 3 . . . . . . . . Critical Parts Destroyed 19 | . . . 7 . 8 . 2 . . . . . . . 1 . . . . . 1 . . Melee Attacks 167 | . . . 2 . 22 . 9 18 . 18 . 1 . . 50 . 29 . . . 18 . . Impact . | . . . . . . . . . . . . . . . . . . . . . . . . Slashing 167 | . . . 2 . 22 . 9 18 . 18 . 1 . . 50 . 29 . . . 18 . . Piercing . | . . . . . . . . . . . . . . . . . . . . . . . . Sneak Attacks 22 | . . . . . . . . 1 . 1 . . . . 6 . 7 . . . 7 . . Combat Hostiles 1 | . . . . . . . . . . . . . . . . . . . . . 1 . . Follow-up Attacks 4 | . . . . . 4 . . . . . . . . . . . . . . . . . . Damage Inflicted 19587 | 173 955 263 2099 94 1474 934 5355 500 . 939 . 50 . 760 1416 . 2065 . 270 . 1644 . 596 Guns 8367 | 173 955 241 1708 62 619 606 2711 . . 679 . . . . 163 . 147 . 270 . . . 33 Cannons 1474 | . . . 377 . . . 1068 . . . . . . . . . . . . . 29 . . Explosions 3776 | . . . . . 175 328 1369 212 . . . . . 760 . . 369 . . . . . 563 Melee 5883 | . . . . . 680 . 188 288 . 260 . 50 . . 1253 . 1549 . . . 1615 . . Ramming 87 | . . 22 14 32 . . 19 . . . . . . . . . . . . . . . . Kinetic 5975 | 41 913 223 801 62 619 606 2629 . . . . . . . 81 . . . . . . . . Thermal 3982 | . . 18 1284 . . . 1329 . . 679 . . . . 82 . 291 . 270 . 29 . . Explosive 3162 | . . . . . 175 328 1190 . . . . . . 760 . . 146 . . . . . 563 Electromagnetic 465 | 132 42 . . . . . . 212 . . . . . . . . 79 . . . . . . Impact . | . . . . . . . . . . . . . . . . . . . . . . . . Slashing 5883 | . . . . . 680 . 188 288 . 260 . 50 . . 1253 . 1549 . . . 1615 . . Piercing . | . . . . . . . . . . . . . . . . . . . . . . . . Phasic 33 | . . . . . . . . . . . . . . . . . . . . . . . 33 Highest Corruption 4 | . . . . . 4 . 1 . . . . . . . . . . . . . . . . Average Corruption 2 | . . . . . 2 . 1 . . . . . . . . . . . . . . . . Corruption Purged 4 | . . . . . 4 . . . . . . . . . . . . . . . . . . Effects 17 | . . . . . 17 . . . . . . . . . . . . . . . . . . Message Errors 5 | . . . . . 5 . . . . . . . . . . . . . . . . . . Matter Fused 3 | . . . . . 3 . . . . . . . . . . . . . . . . . . Heat Flow Errors 2 | . . . . . 2 . . . . . . . . . . . . . . . . . . Energy Discharges 3 | . . . . . 3 . . . . . . . . . . . . . . . . . . Data Loss (minor) 4 | . . . . . 4 . . . . . . . . . . . . . . . . . . Overload Shots . | . . . . . . . . . . . . . . . . . . . . . . . . Overflow Damage 1640 | . . . . . 1 13 149 . . 11 . . . . 249 . 551 . . . 641 . 25 Projectiles 37 | . . . . . . . 27 . . . . . . . . . . . . . 10 . . Explosions 160 | . . . . . . 13 122 . . . . . . . . . . . . . . . 25 Melee 1443 | . . . . . 1 . . . . 11 . . . . 249 . 551 . . . 631 . . Knockbacks 11 | . . 1 . 1 . . 9 . . . . . . . . . . . . . . . . Impact 3 | . . 1 . 1 . . 1 . . . . . . . . . . . . . . . . Kinetic 8 | . . . . . . . 8 . . . . . . . . . . . . . . . . Secondary . | . . . . . . . . . . . . . . . . . . . . . . . . Self-Inflicted Damage 111 | . . . . . . . 75 . . . . . . 30 . . . . . . . . 6 Shots 5 | . . . . . . . 3 . . . . . . 1 . . . . . . . . 1 Rammed 9 | . . 2 2 3 . . 2 . . . . . . . . . . . . . . . . Targets Rammed 10 | . . 2 2 4 . . 2 . . . . . . . . . . . . . . . . Kicked . | . . . . . . . . . . . . . . . . . . . . . . . . Crushed 1 | . . . . 1 . . . . . . . . . . . . . . . . . . . Highest Temperature 467 | 40 40 21 272 8 427 103 467 6 . . . . . 8 16 . 86 24 56 78 222 156 207 Average Temperature 82 | 21 10 8 65 6 118 40 125 4 . . . . . 5 8 . 20 9 24 38 65 83 100 Received Heat Transfer 2220 | . 285 33 318 . . 288 765 114 . 36 30 9 . 69 30 . . . . . 243 . . Effects 11 | . . . . . 3 . 8 . . . . . . . . . . . . . . . . Shutdowns 5 | . . . . . 2 . 3 . . . . . . . . . . . . . . . . Energy Bleed 4 | . . . . . . . 4 . . . . . . . . . . . . . . . . Interference 1 | . . . . . . . 1 . . . . . . . . . . . . . . . . Short Circuit 1 | . . . . . 1 . . . . . . . . . . . . . . . . . . Siege Activations . | . . . . . . . . . . . . . . . . . . . . . . . . Robots Corrupted 1 | . . . . . . . . 1 . . . . . . . . . . . . . . . Combat Hostiles 1 | . . . . . . . . 1 . . . . . . . . . . . . . . . Parts Fried . | . . . . . . . . . . . . . . . . . . . . . . . . Impact Corruptions . | . . . . . . . . . . . . . . . . . . . . . . . . Robots Melted . | . . . . . . . . . . . . . . . . . . . . . . . . Combat Hostiles . | . . . . . . . . . . . . . . . . . . . . . . . . Parts Melted 12 | . . . 5 . . . 2 . . 4 . . . . 1 . . . . . . . . Heat Transferred 6873 | . . 37 2627 . . . 2629 . . 814 . . . . 111 . 285 . 333 . 37 . . Parts Sabotaged . | . . . . . . . . . . . . . . . . . . . . . . . . Parts Stolen . | . . . . . . . . . . . . . . . . . . . . . . . . Parts Stripped . | . . . . . . . . . . . . . . . . . . . . . . . . Power Chain Reactions . | . . . . . . . . . . . . . . . . . . . . . . . . Missiles Intercepted . | . . . . . . . . . . . . . . . . . . . . . . . . Alert | -11 -10 -10 -9 -9 -9 -8 -8 -7 -7 -7 -7 -7 -7 -6 -6 -6 -6 -6 -6 -6 -6 -5 -5 ------- Run | Scr Mat Min Mat Min Exi Min Mat Fac Was Fac Low Low Dat Pro Fac Was Fac Low Low Zio Dee Pro Fac Peak Influence 827 | 20 224 94 303 92 . 201 827 548 188 574 . . . . 585 204 789 . . . . . 310 Initial 309 | . 13 19 1 87 . . 19 309 188 131 . . . . . 204 142 . . . . . 28 Average 203 | 8 64 41 147 88 . 51 347 414 188 141 . . . . 278 204 448 . . . . . 138 Maximum Alert Level 3 | . 1 . 1 . . 1 3 2 . 2 . . . . 2 1 3 . . . . . 1 Low Security (%) 63 | 100 97 100 83 100 . 98 34 . 100 77 . . . . 32 . 10 . . . . . 56 Level 1 22 | . 2 . 16 . . 1 30 42 . 18 . . . . 48 100 46 . . . . . 43 Level 2 9 | . . . . . . . 19 57 . 4 . . . . 18 . 24 . . . . . . Level 3 4 | . . . . . . . 15 . . . . . . . . . 18 . . . . . . Level 4 . | . . . . . . . . . . . . . . . . . . . . . . . . Level 5 . | . . . . . . . . . . . . . . . . . . . . . . . . High Security . | . . . . . . . . . . . . . . . . . . . . . . . . Max Security . | . . . . . . . . . . . . . . . . . . . . . . . . Squads Dispatched 34 | . 3 . 7 . . . 7 2 . 8 . . . . 6 . . . . . . . 1 Investigation 16 | . 2 . 5 . . . 2 . . 4 . . . . 3 . . . . . . . . Extermination 4 | . . . . . . . . 1 . 2 . . . . 1 . . . . . . . . Reinforcement 12 | . 1 . 2 . . . 3 1 . 2 . . . . 2 . . . . . . . 1 Assault 1 | . . . . . . . 1 . . . . . . . . . . . . . . . . Garrison 1 | . . . . . . . 1 . . . . . . . . . . . . . . . . Intercept . | . . . . . . . . . . . . . . . . . . . . . . . . Construction Impeded 1 | . . . . . . . . . . . . . . . 1 . . . . . . . . Haulers Reinforced 2 | . . . . . . . . 1 . 1 . . . . . . . . . . . . . Stealth | -11 -10 -10 -9 -9 -9 -8 -8 -7 -7 -7 -7 -7 -7 -6 -6 -6 -6 -6 -6 -6 -6 -5 -5 --------- Run | Scr Mat Min Mat Min Exi Min Mat Fac Was Fac Low Low Dat Pro Fac Was Fac Low Low Zio Dee Pro Fac Distress Signals 14 | . 2 . 1 . . . 6 1 . . . . . . 1 . 2 . . . . . 1 Communications Jammed . | . . . . . . . . . . . . . . . . . . . . . . . . Distress Signals . | . . . . . . . . . . . . . . . . . . . . . . . . Times Spotted 281 | . 25 5 45 3 24 11 61 13 1 25 5 7 . 6 20 . 10 . 2 . 3 7 8 Peak Tracking Total 19 | . 3 2 5 19 9 3 5 7 1 8 3 4 . 4 5 . 4 . 1 . 3 6 4 Tactical Retreats 45 | . 1 . 5 2 4 3 10 4 . 2 2 1 . 1 5 . 1 . . . . 2 2 Traps | -11 -10 -10 -9 -9 -9 -8 -8 -7 -7 -7 -7 -7 -7 -6 -6 -6 -6 -6 -6 -6 -6 -5 -5 ------- Run | Scr Mat Min Mat Min Exi Min Mat Fac Was Fac Low Low Dat Pro Fac Was Fac Low Low Zio Dee Pro Fac Traps Triggered 13 | . 2 . 3 . . . 3 1 . 1 . . . . 2 . 1 . . . . . . Indirectly . | . . . . . . . . . . . . . . . . . . . . . . . . Trap Hack Attempts . | . . . . . . . . . . . . . . . . . . . . . . . . Triggered . | . . . . . . . . . . . . . . . . . . . . . . . . Disarmed . | . . . . . . . . . . . . . . . . . . . . . . . . Reprogrammed . | . . . . . . . . . . . . . . . . . . . . . . . . Reused . | . . . . . . . . . . . . . . . . . . . . . . . . Traps Extracted . | . . . . . . . . . . . . . . . . . . . . . . . . Installed . | . . . . . . . . . . . . . . . . . . . . . . . . Triggered 1 | . . . . . . . . . . . 1 . . . . . . . . . . . . Exploded 3 | . . . . . 3 . . . . . . . . . . . . . . . . . . Machines | -11 -10 -10 -9 -9 -9 -8 -8 -7 -7 -7 -7 -7 -7 -6 -6 -6 -6 -6 -6 -6 -6 -5 -5 ---------- Run | Scr Mat Min Mat Min Exi Min Mat Fac Was Fac Low Low Dat Pro Fac Was Fac Low Low Zio Dee Pro Fac Machines Disabled 26 | . . . 1 . 11 1 9 . . . . . . . . . 1 . . . 1 . 2 Max in Single Turn 4 | . . . 1 . 1 1 4 . . . . . . . . . 1 . . . 1 . 2 Garrison Access 10 | . . . . . . . 1 1 . 3 . . . . 3 . 2 . . . . . . Machines Sabotaged . | . . . . . . . . . . . . . . . . . . . . . . . . Garrisons Compromised . | . . . . . . . . . . . . . . . . . . . . . . . . Overloaded Fab Kills . | . . . . . . . . . . . . . . . . . . . . . . . . Fab Network Shutdowns 3 | . . . . . . . . . . 1 . . . . 1 . 1 . . . . . . Hacking | -11 -10 -10 -9 -9 -9 -8 -8 -7 -7 -7 -7 -7 -7 -6 -6 -6 -6 -6 -6 -6 -6 -5 -5 --------- Run | Scr Mat Min Mat Min Exi Min Mat Fac Was Fac Low Low Dat Pro Fac Was Fac Low Low Zio Dee Pro Fac Machines Accessed 111 | . 8 2 14 . 2 . 12 4 . 23 . 3 4 . 28 . 10 . 1 . . . . Terminals 65 | . 7 1 10 . . . 9 3 . 14 . . . . 16 . 5 . . . . . . Fabricators 7 | . . . . . . . . . . 2 . . . . 4 . 1 . . . . . . Repair Stations 11 | . 1 . 1 . . . 2 . . 3 . . . . 3 . 1 . . . . . . Recycling Units 2 | . . . 2 . . . . . . . . . . . . . . . . . . . . Scanalyzers 5 | . . . 1 . . . . . . 1 . . . . 2 . 1 . . . . . . Garrison Access 10 | . . . . . . . 1 1 . 3 . . . . 3 . 2 . . . . . . Total Hacks 371 | . 29 5 40 . 2 . 58 12 . 82 . 6 29 . 78 . 29 . 1 . . . . Successful 259 | . 18 2 27 . 2 . 36 8 . 52 . 6 29 . 53 . 25 . 1 . . . . Failed 111 | . 11 3 12 . . . 22 4 . 30 . . . . 25 . 4 . . . . . . Catastrophic 15 | . 4 . . . . . 2 . . 3 . . . . 4 . 2 . . . . . . Database Lockouts 1 | . . . 1 . . . . . . . . . . . . . . . . . . . . Manual 156 | . 13 4 14 . 1 . 23 5 . 40 . . . . 36 . 16 . . 4 . . . Terminals 230 | . 27 4 30 . . . 38 10 . 54 . . . . 48 . 19 . . . . . . Fabricators 29 | . . . . . . . . . . 11 . . . . 16 . 2 . . . . . . Repair Stations 46 | . 2 . 6 . . . 19 . . 7 . . . . 8 . 4 . . . . . . Recycling Units 2 | . . . 2 . . . . . . . . . . . . . . . . . . . . Scanalyzers 11 | . . . 2 . . . . . . 4 . . . . 3 . 2 . . . . . . Garrison Access 14 | . . . . . . . 1 2 . 6 . . . . 3 . 2 . . . . . . Terminal Hacks 120 | . 11 2 14 . 2 . 15 3 . 15 . 6 29 . 15 . 7 . 1 . . . . Record 16 | . . . . . 1 . . . . . . 4 11 . . . . . . . . . . Part Schematic 14 | . . . . . . . . . . 1 . . 9 . 2 . 2 . . . . . . Robot Schematic 6 | . . . . . . . . . . . . . 6 . . . . . . . . . . Robot Analysis 7 | . . 1 2 . . . 3 . . 1 . . . . . . . . . . . . . Prototype ID Bank 23 | . 4 . 6 . . . 2 . . 5 . . 3 . 2 . 1 . . . . . . Open Door 4 | . . 1 . . . . . . . . . 2 . . . . . . 1 . . . . Branch Access Points 3 | . . . . . . . 1 . . 1 . . . . . . 1 . . . . . . Machine Index 3 | . . . . . . . . . . 1 . . . . 1 . 1 . . . . . . Terminal Index 2 | . . . . . . . . 1 . 1 . . . . . . . . . . . . . Repair Station Index 1 | . . . . . . . 1 . . . . . . . . . . . . . . . . Unreport Threat 5 | . 1 . 1 . . . 2 . . 1 . . . . . . . . . . . . . Locate Traps 16 | . 3 . 1 . . . 3 1 . 3 . . . . 3 . 2 . . . . . . Recall Investigation 6 | . 1 . 1 . . . . . . 1 . . . . 3 . . . . . . . . Recall Extermination 1 | . . . . . . . . . . . . . . . 1 . . . . . . . . Hauler Manifests 5 | . 1 . 1 . . . 1 1 . . . . . . 1 . . . . . . . . Registered Components 2 | . . . 1 . . . 1 . . . . . . . . . . . . . . . . Zone Layout 5 | . 1 . 1 . . . 1 . . . . . . . 2 . . . . . . . . EX-Prototype ID Bank 1 | . . . . . 1 . . . . . . . . . . . . . . . . . . Fabricator Hacks 17 | . . . . . . . . . . 4 . . . . 11 . 2 . . . . . . Network Status 1 | . . . . . . . . . . . . . . . 1 . . . . . . . . Load Schematic 7 | . . . . . . . . . . 2 . . . . 4 . 1 . . . . . . Build 9 | . . . . . . . . . . 2 . . . . 6 . 1 . . . . . . Repair Station Hacks 32 | . 2 . 6 . . . 11 . . 5 . . . . 4 . 4 . . . . . . Scan Component 17 | . 1 . 3 . . . 6 . . 3 . . . . 2 . 2 . . . . . . Repair 15 | . 1 . 3 . . . 5 . . 2 . . . . 2 . 2 . . . . . . Recycling Unit Hacks . | . . . . . . . . . . . . . . . . . . . . . . . . Scanalyzer 8 | . . . . . . . . . . 3 . . . . 3 . 2 . . . . . . Insert Component 4 | . . . . . . . . . . 1 . . . . 2 . 1 . . . . . . Analyze 4 | . . . . . . . . . . 2 . . . . 1 . 1 . . . . . . Garrison Access Hacks 10 | . . . . . . . 1 1 . 3 . . . . 3 . 2 . . . . . . Seal Access 10 | . . . . . . . 1 1 . 3 . . . . 3 . 2 . . . . . . Unauthorized Hacks 72 | . 5 . 7 . . . 9 4 . 22 . . . . 17 . 8 . . . . . . Terminals 60 | . 5 . 4 . . . 9 4 . 18 . . . . 12 . 8 . . . . . . Track 21 | . 3 . 3 . . . 4 1 . 5 . . . . 3 . 2 . . . . . . Assimilate 7 | . . . . . . . . 1 . 4 . . . . 2 . . . . . . . . Botnet 28 | . 2 . 1 . . . 5 1 . 8 . . . . 7 . 4 . . . . . . Disrupt 2 | . . . . . . . . . . 1 . . . . . . 1 . . . . . . Operators 2 | . . . . . . . . 1 . . . . . . . . 1 . . . . . . Fabricators 9 | . . . . . . . . . . 4 . . . . 5 . . . . . . . . Report 1 | . . . . . . . . . . . . . . . 1 . . . . . . . . Prioritize 3 | . . . . . . . . . . 2 . . . . 1 . . . . . . . . Siphon 5 | . . . . . . . . . . 2 . . . . 3 . . . . . . . . Repair Stations . | . . . . . . . . . . . . . . . . . . . . . . . . Recycling Units 2 | . . . 2 . . . . . . . . . . . . . . . . . . . . Tunnel 2 | . . . 2 . . . . . . . . . . . . . . . . . . . . Scanalyzers 1 | . . . 1 . . . . . . . . . . . . . . . . . . . . Extract 1 | . . . 1 . . . . . . . . . . . . . . . . . . . . Garrison Access . | . . . . . . . . . . . . . . . . . . . . . . . . Data Cores Recovered . | . . . . . . . . . . . . . . . . . . . . . . . . Used . | . . . . . . . . . . . . . . . . . . . . . . . . Hacking Detections 76 | . 8 1 11 . . . 8 3 . 20 . . . . 20 . 5 . . . . . . Full Trace Events 9 | . 1 . 1 . . . 1 . . 3 . . . . 3 . . . . . . . . Feedback Events . | . . . . . . . . . . . . . . . . . . . . . . . . Feedback Blocked . | . . . . . . . . . . . . . . . . . . . . . . . . Robot Schematics Acquired 6 | . . . . . . . . . . . . . 6 . . . . . . . . . . Robots Built . | . . . . . . . . . . . . . . . . . . . . . . . . Matter . | . . . . . . . . . . . . . . . . . . . . . . . . Time . | . . . . . . . . . . . . . . . . . . . . . . . . Total Robot Build Rating . | . . . . . . . . . . . . . . . . . . . . . . . . Part Schematics Acquired 18 | . . . 1 . . . . . . 2 . . 9 . 3 . 3 . . . . . . Parts Built 9 | . . . . . . . . . . 4 . . . . 4 . 1 . . . . . . Matter 1568 | . . . . . . . . . . 284 . . . . 999 . 285 . . . . . . Time 569 | . . . . . . . . . . 47 . . . . 472 . 50 . . . . . . Total Part Build Rating 48 | . . . . . . . . . . 20 . . . . 23 . 5 . . . . . . Parts Repaired 15 | . 1 . 3 . . . 5 . . 2 . . . . 2 . 2 . . . . . . Time 674 | . 26 . 78 . . . 247 . . 81 . . . . 74 . 168 . . . . . . Parts Recycled . | . . . . . . . . . . . . . . . . . . . . . . . . Recycled Matter . | . . . . . . . . . . . . . . . . . . . . . . . . Retrieved Matter . | . . . . . . . . . . . . . . . . . . . . . . . . Retrieved Components . | . . . . . . . . . . . . . . . . . . . . . . . . Parts Scanalyzed 3 | . . . . . . . . . . 1 . . . . 1 . 1 . . . . . . Part Schematics Acquired 3 | . . . . . . . . . . 1 . . . . 1 . 1 . . . . . . Parts Damaged . | . . . . . . . . . . . . . . . . . . . . . . . . Bothacking | -11 -10 -10 -9 -9 -9 -8 -8 -7 -7 -7 -7 -7 -7 -6 -6 -6 -6 -6 -6 -6 -6 -5 -5 ------------ Run | Scr Mat Min Mat Min Exi Min Mat Fac Was Fac Low Low Dat Pro Fac Was Fac Low Low Zio Dee Pro Fac Used RIF Installer . | . . . . . . . . . . . . . . . . . . . . . . . . Robots Hacked . | . . . . . . . . . . . . . . . . . . . . . . . . Non-combat . | . . . . . . . . . . . . . . . . . . . . . . . . Combat . | . . . . . . . . . . . . . . . . . . . . . . . . Robot Hacks Applied . | . . . . . . . . . . . . . . . . . . . . . . . . Relay Couplers Released . | . . . . . . . . . . . . . . . . . . . . . . . . Robots Rewired . | . . . . . . . . . . . . . . . . . . . . . . . . Allies Hacked . | . . . . . . . . . . . . . . . . . . . . . . . . Hacks Repelled . | . . . . . . . . . . . . . . . . . . . . . . . . Allies | -11 -10 -10 -9 -9 -9 -8 -8 -7 -7 -7 -7 -7 -7 -6 -6 -6 -6 -6 -6 -6 -6 -5 -5 -------- Run | Scr Mat Min Mat Min Exi Min Mat Fac Was Fac Low Low Dat Pro Fac Was Fac Low Low Zio Dee Pro Fac Total Allies 10 | . . . . . . . . 1 . 4 . . . 1 2 . . . . 2 . . . Largest Group 2 | . . . . . . . . 1 . 2 . . . 1 2 2 2 . . 2 2 . . Highest-Rated Group 94 | . . . . . . . . 26 . 26 . . . 94 94 52 52 . . 45 45 . . Highest-Rated Ally 94 | . . . . . . . . 26 . 26 . . . 94 94 26 26 . . 31 31 . . Total Orders 12 | . . . . . . . . . . 2 . . . . 10 . . . . . . . . STAY 6 | . . . . . . . . . . 1 . . . . 5 . . . . . . . . FOLLOW 6 | . . . . . . . . . . 1 . . . . 5 . . . . . . . . Ally Attacks 60 | . . . . . . . . . . . . . . 10 16 . . . . . 34 . . Total Damage 1553 | . . . . . . . . . . . . . . 363 668 . . . . . 522 . . Kills 7 | . . . . . . . . . . . . . . 2 5 . . . . . . . . Allies Corrupted . | . . . . . . . . . . . . . . . . . . . . . . . . Allies Melted . | . . . . . . . . . . . . . . . . . . . . . . . . Turrets Deployed 1 | . . . . . . . . . . . . . . . . . . . . . 1 . . Intel | -11 -10 -10 -9 -9 -9 -8 -8 -7 -7 -7 -7 -7 -7 -6 -6 -6 -6 -6 -6 -6 -6 -5 -5 ------- Run | Scr Mat Min Mat Min Exi Min Mat Fac Was Fac Low Low Dat Pro Fac Was Fac Low Low Zio Dee Pro Fac Robot Analysis Total 7 | . . 1 2 . . . 3 . . 1 . . . . . . . . . . . . . Derelict Logs Recovered 10 | . . 1 . 1 . . . . . . . 2 . 2 . . . 2 1 1 . . . Drone Launches . | . . . . . . . . . . . . . . . . . . . . . . . . Drone Recoveries . | . . . . . . . . . . . . . . . . . . . . . . . . Exploration | -11 -10 -10 -9 -9 -9 -8 -8 -7 -7 -7 -7 -7 -7 -6 -6 -6 -6 -6 -6 -6 -6 -5 -5 ------------- Run | Scr Mat Min Mat Min Exi Min Mat Fac Was Fac Low Low Dat Pro Fac Was Fac Low Low Zio Dee Pro Fac Turns Passed 19638 | 108 1319 1041 2643 250 3356 1088 3319 351 86 1027 90 227 32 472 1584 122 528 154 209 241 1070 91 230 Spaces Moved 19764 | 72 879 608 1376 140 1349 508 1341 664 286 2237 239 517 93 586 3293 411 961 564 834 855 1339 162 450 Core 25 | 20 . . . . 5 . . . . . . . . . . . . . . . . . . Treads 5663 | . 310 608 1376 140 1344 508 1341 36 . . . . . . . . . . . . . . . Legs . | . . . . . . . . . . . . . . . . . . . . . . . . Wheels 621 | 52 569 . . . . . . . . . . . . . . . . . . . . . . Hover . | . . . . . . . . . . . . . . . . . . . . . . . . Flight 13455 | . . . . . . . . 628 286 2237 239 517 93 586 3293 411 961 564 834 855 1339 162 450 Fastest Speed 23 | 50 80 160 145 165 145 197 173 29 29 29 34 34 34 34 24 24 23 23 23 23 23 27 27 Average Speed 71 | 75 114 160 156 165 187 197 174 37 29 31 34 34 34 34 28 24 23 23 23 23 26 27 27 Slowest Speed 1900 | 90 160 160 185 165 1900 197 270 178 29 34 34 34 34 34 30 24 27 23 23 23 181 27 27 Overloaded Moves . | . . . . . . . . . . . . . . . . . . . . . . . . Propulsion Burnouts . | . . . . . . . . . . . . . . . . . . . . . . . . Robots Hopped 55 | . . . . . . . . 5 3 25 1 4 . . 9 1 2 . . . . . 5 Cave-ins Triggered . | . . . . . . . . . . . . . . . . . . . . . . . . Exploration Rate (%) 63 | 4 98 99 81 33 91 93 93 20 97 45 43 67 70 62 61 95 21 67 68 85 64 42 13 Regions Visited 23 Branch Regions 13 Pre-discovered Areas 6 | . . . 2 . 1 . . . . . . . 1 . . . . . . 2 . . . Known Exits Taken 11 | . . . . . . . . . . 1 1 1 1 1 . . 1 1 1 1 1 1 . Unknown Exits Taken 8 | 1 1 1 1 1 1 1 1 . . . . . . . . . . . . . . . . Scrap Searched 16 | . . 1 . . . 1 . . . . 2 3 . 3 . . . 2 2 2 . . . Spaces Dug 83 | . . . 2 . 5 . 2 8 . 9 . . . . 34 . 11 . . . 7 . 5 Terrain Destroyed 442 | . . . 2 . 49 42 116 8 . 13 . . . 56 48 . 31 . 5 . 11 . 61 Melee 64 | . . . 2 . . . 2 8 . 9 . . . . 33 . 10 . . . . . . Projectile 64 | . . . . . 20 . 7 . . 4 . . . . 3 . 9 . 5 . 11 . 5 AOE 314 | . . . . . 29 42 107 . . . . . . 56 12 . 12 . . . . . 56 Terrain Rammed . | . . . . . . . . . . . . . . . . . . . . . . . . Walls Destroyed . | . . . . . . . . . . . . . . . . . . . . . . . . Machines Disabled . | . . . . . . . . . . . . . . . . . . . . . . . . Actions | -11 -10 -10 -9 -9 -9 -8 -8 -7 -7 -7 -7 -7 -7 -6 -6 -6 -6 -6 -6 -6 -6 -5 -5 --------- Run | Scr Mat Min Mat Min Exi Min Mat Fac Was Fac Low Low Dat Pro Fac Was Fac Low Low Zio Dee Pro Fac Total 24111 | 102 1065 649 1696 151 2048 550 2066 736 285 2496 244 559 92 844 3823 433 1189 587 850 898 1998 208 542 Wait 3143 | . 76 13 145 . 520 4 486 34 . 235 3 42 . 239 411 20 154 22 14 44 550 46 85 Move 19639 | 71 878 607 1375 139 1348 507 1340 655 280 2187 236 510 92 585 3275 408 956 563 833 854 1338 161 441 Hop 49 | . . . . . . . . 4 2 24 1 2 . . 9 1 2 . . . . . 4 Pick Up 200 | 11 12 5 33 1 39 2 21 4 2 7 . . . 1 16 2 9 1 1 . 33 . . Fast Attach 33 | 2 3 1 3 1 2 1 12 . . . . . . . 3 . . . . . 5 . . Attach 93 | 4 . . 9 . 9 3 9 9 1 7 . . . 3 13 . 13 . 1 . 10 . 2 Detach 24 | . . . . . 1 1 2 . . 6 . . . . 8 . 3 . 1 . 2 . . Swap 115 | 1 22 1 13 1 16 . 17 2 . 10 4 4 . 6 7 . 7 1 . . 2 1 . Drop 152 | 1 11 6 21 2 39 3 20 7 . 2 . . . 1 13 2 6 . . . 18 . . Fire 480 | 12 63 14 93 3 56 29 148 3 . . . . . 9 8 . 10 . . . 22 . 10 Melee 163 | . . . 2 . 18 . 9 18 . 18 . 1 . . 50 . 29 . . . 18 . . Ram . | . . . . . . . . . . . . . . . . . . . . . . . . Kick . | . . . . . . . . . . . . . . . . . . . . . . . . Crush 10 | . . 2 2 4 . . 2 . . . . . . . . . . . . . . . . Escape Stasis 10 | . . . . . . . . . . . . . . . 10 . . . . . . . . Rewire . | . . . . . . . . . . . . . . . . . . . . . . . . Trap . | . . . . . . . . . . . . . . . . . . . . . . . . Miscellaneous . | . . . . . . . . . . . . . . . . . . . . . . . . Route ------- -11/Scrapyard -10/Materials (discovered 5 exits: *Mat x3 / *Min x2) -10/Mines (discovered 2 exits: *Mat x2) -9/Materials (discovered 7 exits: *Mat x3 / [*Min x2] / [*Sto x2]) -9/Mines -9/Exiles -8/Mines (discovered 2 exits: *Mat x2) -8/Materials (discovered 3 exits: *Fac x3) -7/Factory (discovered 3 exits: *Fac / *Low x2) -7/Waste -7/Factory (discovered 2 exits: *Low x2) -7/Lower Caves -7/Lower Caves (discovered 2 exits: Fac / *Dat) -7/Data Miner -6/Proximity Caves -6/Factory (discovered 4 exits: *Low x2 / *Ext x2) -6/Waste -6/Factory (discovered 5 exits: *Fac / *Low x2 / Ext x2) -6/Lower Caves -6/Lower Caves (discovered 2 exits: *Fac / *Zio) -6/Zion (discovered 2 exits: *Dee / [*Pro]) -6/Deep Caves -5/Proximity Caves -5/Factory (discovered 1 exit: [*Fac]) History --------- Turn | Location | Event 2 | -11/Scrapyard | Met Revision 17 31 | -11/Scrapyard | Discovered new exit (range 15) 109 | -11/Scrapyard | Entered Materials 344 | -10/Materials | Build established: Mutant 398 | -10/Materials | Discovered new exit (range 14) 699 | -10/Materials | Discovered new exit (range 4) 734 | -10/Materials | Discovered new exit (range 17) 735 | -10/Materials | Repaired Assault Rifle? 1008 | -10/Materials | Discovered new exit (range 16) 1114 | -10/Materials | Discovered new exit (range 7) 1428 | -10/Materials | Entered Mines 1502 | -10/Mines | Discovered new exit (range 10) 1585 | -10/Mines | A weapon hastily lodged in a ceiling crevice suddenly fell to the ground 1642 | -10/Mines | Received a Rocket Launcher from a helpful Derelict 1658 | -10/Mines | Discovered new exit (range 14) 2110 | -10/Mines | Learned Materials interactive machine intel 2339 | -10/Mines | Met a Derelict who couldn't figure out how to use a Trap Extractor 2469 | -10/Mines | Entered Materials 2469 | -9/Materials | Evolved 2 slots: Utility x2 2470 | -9/Materials | Loaded intel: 18 interactive machine locations 2668 | -9/Materials | Repaired Lgt. Treads 2695 | -9/Materials | Repaired Med. Storage Unit 2724 | -9/Materials | Repaired Lgt. Treads 2806 | -9/Materials | Discovered new exit (range 11) 3109 | -9/Materials | Discovered new exit (range 16) 3358 | -9/Materials | Build established: Scavenger-Mutant 3417 | -9/Materials | Discovered new exit (range 10) 3615 | -9/Materials | Discovered new exit (range 13) 3753 | -9/Materials | Central database locked down 3946 | -9/Materials | Build established: Mutant 3986 | -9/Materials | Discovered new exit (range 7) 4055 | -9/Materials | Discovered new exit (range 16) 4416 | -9/Materials | Discovered new exit (range 14) 4453 | -9/Materials | Build established: Hauler-Mutant 5112 | -9/Materials | Entered Mines 5119 | -9/Mines | Learned Materials security intel 5219 | -9/Mines | Met a Derelict bent on vengeance 5260 | -9/Mines | Assembled infested the area 5337 | -9/Mines | Found a damaged Exp. Sensor Array with a note attached 5341 | -9/Mines | Found Prototype Device 5341 | -9/Mines | Identified Exp. Sensor Array 5354 | -9/Mines | Deemed a non-threat by the Exiles lab entrance 5355 | -9/Mines | Discovered new exit (range 5) 5362 | -9/Mines | Entered Exiles 5402 | -9/Exiles | Met 8R-AWN 5430 | -9/Exiles | Met EX-HEX 5506 | -9/Exiles | Met EX-DEC 5534 | -9/Exiles | Learned location of Zion (-6) 5590 | -9/Exiles | Discovered new exit (range 14) 5709 | -9/Exiles | Met EX-BIN 5732 | -9/Exiles | Aligned with FarCom system 5734 | -9/Exiles | Given EX-Vault access code 5772 | -9/Exiles | Opened EX-Vault 5786 | -9/Exiles | Found Lightpack 2.0 5794 | -9/Exiles | Found AWS/Thermal 5831 | -9/Exiles | Warned to stay clear of 0b10 Research branches 6221 | -9/Exiles | Attacked by the Exiles 6361 | -9/Exiles | Destroyed 8R-AWN 6378 | -9/Exiles | Found Prototype Ballistic Gun 6383 | -9/Exiles | Found Prototype Ballistic Gun 6384 | -9/Exiles | Identified 8R-AWN's Boregun (x2) 6444 | -9/Exiles | Build established: Mutant 6644 | -9/Exiles | Destroyed EX-HEX 6695 | -9/Exiles | Destroyed EX-BIN 6816 | -9/Exiles | Destroyed EX-DEC 6906 | -9/Exiles | Found Deploy-a-Sentry 7346 | -9/Exiles | Build established: Hauler-Mutant 8718 | -9/Exiles | Stole three prototypes: AWS/Thermal, Lightpack 2.0, Deploy-a-Sentry 8718 | -9/Exiles | Entered Mines 8724 | -8/Mines | Discovered new exit (range 11) 9237 | -8/Mines | Discovered new exit (range 8) 9379 | -8/Mines | Core integrity fell below 50% 9806 | -8/Mines | Entered Materials 9806 | -8/Materials | Evolved 2 slots: Propulsion x1, Utility x1 10327 | -8/Materials | Repaired Arm. Treads 10381 | -8/Materials | Repaired Broken Adv. Treads 11145 | -8/Materials | Repaired Hvy. Armor Plating 11184 | -8/Materials | Repaired Imp. Utility Shielding 11265 | -8/Materials | Repaired Exp. Sensor Array 11358 | -8/Materials | Discovered new exit (range 15) 11801 | -8/Materials | Discovered new exit (range 16) 12200 | -8/Materials | Garrison activated, responded to threat 12853 | -8/Materials | Discovered new exit (range 15) 13006 | -8/Materials | First assault squad dispatched 13125 | -8/Materials | Entered Factory 13125 | -7/Factory | Evolved 2 slots: Utility x2 13322 | -7/Factory | Discovered new exit (range 6) 13341 | -7/Factory | Discovered new exit (range 15) 13423 | -7/Factory | Discovered new exit (range 16) 13476 | -7/Factory | Sucked down chute 13476 | -7/Factory | Entered Waste 13476 | -7/Waste | The area was eerily silent 13502 | -7/Waste | Discovered new exit (range 13) 13514 | -7/Waste | Build established: Hacker-Sprinter 13560 | -7/Waste | A Compactor rumbled back to life 13560 | -7/Waste | Spotted C-40 Crusher 13562 | -7/Waste | Entered Factory 13671 | -7/Factory | Identified exit to Lower Caves 13763 | -7/Factory | Repaired Broken Field Propulsion Array 13793 | -7/Factory | Fabricated Adv. Signal Interpreter (x2) 14348 | -7/Factory | Repaired Imp. Utility Shielding 14531 | -7/Factory | Fabricated Field Propulsion Array (x2) 14544 | -7/Factory | Local fabrication network quarantined 14555 | -7/Factory | P-60 Hacker assimilated allied Administrator 4c 14569 | -7/Factory | Build established: Hauler-Mutant 14589 | -7/Factory | Entered Lower Caves 14602 | -7/Lower Caves | Spotted B-75 Beast 14673 | -7/Lower Caves | Discovered new exit (range 12) 14679 | -7/Lower Caves | Identified exit to Lower Caves 14679 | -7/Lower Caves | Entered another Lower Caves area 14720 | -7/Lower Caves | Encountered a Warlord checkpoint 14745 | -7/Lower Caves | Identified exit to Factory 14755 | -7/Lower Caves | Spotted B-75 Beast 14787 | -7/Lower Caves | Learned Factory emergency access door positions 14787 | -7/Lower Caves | Learned Armory garrison access intel 14799 | -7/Lower Caves | Learned Factory terminal intel 14903 | -7/Lower Caves | Discovered new exit (range 9) 14906 | -7/Lower Caves | Identified exit to Data Miner 14906 | -7/Lower Caves | Entered Data Miner 14906 | -7/Data Miner | Discovered new exit (range 6) 14913 | -7/Data Miner | Met Data Miner 14922 | -7/Data Miner | Learned location of Section 7 (-2) 14922 | -7/Data Miner | Acquired the access code to Warlord's prototype stash 14928 | -7/Data Miner | Received God Mode back door access code from Data Miner 14937 | -7/Data Miner | Identified exit to Proximity Caves 14938 | -7/Data Miner | Entered Proximity Caves 14943 | -6/Proximity Caves | Learned Factory emergency access door positions 14970 | -6/Proximity Caves | Attracted the attention of an 0b10 checkpoint 15118 | -6/Proximity Caves | Escorted by Enhanced Grunt 15145 | -6/Proximity Caves | Learned Factory terminal intel 15251 | -6/Proximity Caves | Discovered exit to Factory (range 7) 15311 | -6/Proximity Caves | Received a Behemoth hack from an annoying Tinkerer 15410 | -6/Proximity Caves | Entered Factory 15410 | -6/Factory | Accompanied by 1 ally 15410 | -6/Factory | Evolved 2 slots: Power x1, Propulsion x1 15412 | -6/Factory | Loaded intel: 21 terminal locations 15547 | -6/Factory | Discovered new exit (range 11) 15698 | -6/Factory | Build established: Hauler-Sprinter 15752 | -6/Factory | Discovered new exit (range 10) 15779 | -6/Factory | Identified exit to Extension 15972 | -6/Factory | Discovered exit to Extension (range 13) 16235 | -6/Factory | Repaired Greatsword 16324 | -6/Factory | Build established: Hacker-Sprinter 16410 | -6/Factory | Fabricated Mni. Smartbomb Launcher? 16412 | -6/Factory | Fabricated Exp. Utility Shielding? 16542 | -6/Factory | Found Exp. Targeting Computer 16576 | -6/Factory | Fabricated Exp. Cesium-ion Thruster (x1) 16580 | -6/Factory | Fabricated Exp. Cesium-ion Thruster? 16707 | -6/Factory | Local fabrication network quarantined 16765 | -6/Factory | Discovered new exit (range 11) 16979 | -6/Factory | Repaired Adv. EMP Blaster 16994 | -6/Factory | Manually triggered Chute Trap 16994 | -6/Factory | Sucked down chute 16994 | -6/Factory | Entered Waste 16994 | -6/Waste | The area was eerily silent 17010 | -6/Waste | 2 allies followed down the chute 17044 | -6/Waste | Discovered new exit (range 12) 17111 | -6/Waste | Identified exit to Factory 17116 | -6/Waste | Entered Factory 17116 | -6/Factory | Accompanied by 2 allies 17118 | -6/Factory | Loaded intel: 20 terminal locations 17125 | -6/Factory | Identified exit to Lower Caves 17383 | -6/Factory | Repaired Broken Exp. Cooling System? 17420 | -6/Factory | Local fabrication network quarantined 17434 | -6/Factory | Fabricated Exp. Signal Interpreter? 17448 | -6/Factory | Repaired Mic. Nuclear Core 17477 | -6/Factory | Discovered new exit (range 6) 17478 | -6/Factory | Identified exit to Factory 17644 | -6/Factory | Entered Lower Caves 17656 | -6/Lower Caves | Learned Factory garrison access intel 17671 | -6/Lower Caves | Learned 4 Factory zone layouts 17758 | -6/Lower Caves | Encountered a Warlord checkpoint 17791 | -6/Lower Caves | Discovered new exit (range 8) 17792 | -6/Lower Caves | Identified exit to Lower Caves 17798 | -6/Lower Caves | Entered another Lower Caves area 17798 | -6/Lower Caves | Spotted J0-Y15(f) 17799 | -6/Lower Caves | Encountered a Master Thief 17864 | -6/Lower Caves | Destroyed J0-Y15(f) 17891 | -6/Lower Caves | Discovered exit to Factory (range 9) 17927 | -6/Lower Caves | Discovered new exit (range 14) 17930 | -6/Lower Caves | Identified exit to Zion 17946 | -6/Lower Caves | Learned Factory stockpile data 18007 | -6/Lower Caves | Entered Zion 18013 | -6/Zion | Learned location of Warlord (-5) 18030 | -6/Zion | Discovered new exit (range 13) 18066 | -6/Zion | Acquired unknown access codes intercepted by a Zionite 18114 | -6/Zion | Gained Derelict followers 18198 | -6/Zion | Opened final containment barrier to the Deep Caves 18203 | -6/Zion | Discovered new exit (range 3) 18203 | -6/Zion | Saw the warning signs outside the Deep Caves entrance 18248 | -6/Zion | Identified exit to Deep Caves 18248 | -6/Zion | Entered Deep Caves 18248 | -6/Deep Caves | Accompanied by 2 allies 18293 | -6/Deep Caves | DAS Turret deployed 18356 | -6/Deep Caves | Attacked by Z-Imprinter 18558 | -6/Deep Caves | Z-Facility disabled 18712 | -6/Deep Caves | Found Surveybot 24 Chip 18714 | -6/Deep Caves | Found Surveybot 24 Scanner 19067 | -6/Deep Caves | Build established: Machinist-Sprinter 19316 | -6/Deep Caves | Discovered new exit (range 7) 19318 | -6/Deep Caves | Identified exit to Proximity Caves 19318 | -6/Deep Caves | Entered Proximity Caves 19408 | -5/Proximity Caves | Discovered exit to Factory (range 5) 19409 | -5/Proximity Caves | Entered Factory 19409 | -5/Factory | Evolved 2 slots: Utility x2 19412 | -5/Factory | Loaded intel: 4 garrison access locations 19488 | -5/Factory | Discovered new exit (range 5) 19639 | -5/Factory | Self-destructed Last Messages --------------- Loading 4 Factory zones... Loading Factory stockpile data (x10)... Loading Factory garrison access intel (x4)... 19488_ EXIT=FOUND 19492_ O-24 Administrator: "IFF HANDSHAKE FAILED. SECURING TERMINAL." 19494_ O-24 Administrator uses terminal to summon reinforcements. 19494_ ALERT: Hostiles spotted, dispatching reinforcements to Terminal F006. 19494_ O-24 Administrator locks terminal. 19535_ Zio. Phaser-S destroyed. 19535_ Destroyed Zio. Phaser-S. 19537_ S-27 Virus destroyed. 19537_ Subcomponent Replicator disabled. 19539_ Destroyed Autogun. 19539_ Destroyed Lgt. Nuclear Core. 19543_ The unstable cave ceiling collapses. 19544_ Acquired 1 matter. 19544_ Acquired 10 matter. 19545_ Acquired 15 matter. 19587_ T-07 Excavator is excavating. Map ----- +----------------------------------------------------+ | ?????????????????????????????????????# #?# | | ?????????????????????????????????????# #?# "" | | ?????????????????????????????????????# #?#! """ | | ?????????????????????????????????????# #?# R" | | ?????????????????????????????????????# #?# """ | | ???????????????????????w?????????????# #?# "" | | ????????????????????????????????????## ### | | ????????????????????????????????????# #######+ | | ????????????????????????????????????# Y | | ????????????????????????????????????# | | ????????????????????????????????????# | | ????????????????????????????????????# ####### | | ????????????????????????????????????### ###??t | | ??????????????????????????????????????# #????# | | ??????????????????????????????????????# #????##### | | ??????????????????????t???????????????# #????????# | | ??????????????????????????????????????# #????????? | | ??????????????????????????????????????# #????????? | | ??????????????????????????????????????# #????????? | | ??????????????????????????????????????# #????????? | | ??????????????????????????????????????# #????????? | | ??????????????????????????????????????# #????????? | | ????????? ###########+###?????????????# #????????? | | ???????? ############### #????????? | | ???????? ] # ## #????????? | | ?????""? #@""""" """ ## #??####### | | ?????""? + "" F" """ ## #? | | ???]?G?? # "" "" """ u #? | | ?????""?? """ """ # # # | | ?????""?? ? ??""" """ ####+######### # | | ???????????????"" """ + | | ?????t????????sss #### | | ????????????????" """ """" """" #??? | | ????????????????" """ = """" """" #???? | | ????????????????? """ """" """" !#????######## | | ??????????????????? #???????????? | | ??????????????"?????" ] g #########???? | | ????????? """??"" g #???? | | ????????? """?""" #???? | | ????????# ?? ||| #???? | | ????????# """ """ |A| #???? | | ????????# """ """ ||| #???? | | ????????# """ """ #???? | | ??####### """"""""" #???? | | ??# """ """ #???? | | ??# """ """ """"""""" #???? | | ??# """ """ ! #???? | | ??# g #???? | | ??# """ """ A #???? | | ??### """ """ ###+############ #???? | +----------------------------------------------------+ Best States ------------- Heat Dissipation 78 Coolant Potential 65 Energy Generation 37 Energy Capacity 1150 Matter Stores 500 Matter Capacity 500 Sight Range 16 Robot Scan Range 30 Terrain Scan Density 10 Armor Coverage 750 Resistance: EM 15 Propulsion Shielding 66 Utility Shielding 90 Evasion (%) 65 Armor Integrity Analysis 33 Recoil Reduction 3 Offensive Hacking 34 Defensive Hacking 20 Item Schematics ----------------- Particle Gun | -9/Materials | Extracted Adv. Signal Interpreter | -7/Factory | Hacked Field Propulsion Array | -7/Factory | Scanalyzed Combat Drone Bay | -7/Data Miner | Free Lgt. Regenerative Plating | -7/Data Miner | Free Cmb. Gravmag System | -7/Data Miner | Free Exp. Cesium-ion Thruster | -7/Data Miner | Free Exp. Sensor Array | -7/Data Miner | Free Exp. Terrain Scan Processor | -7/Data Miner | Free Exp. Targeting Computer | -7/Data Miner | Free Mni. Smartbomb Launcher | -7/Data Miner | Free Kinetic Spear | -7/Data Miner | Free Exp. Utility Shielding | -6/Factory | Hacked Adv. Hacking Suite | -6/Factory | Hacked Adv. EMP Blaster | -6/Factory | Scanalyzed Exp. Cooling System | -6/Factory | Scanalyzed Exp. Signal Interpreter | -6/Factory | Hacked Adv. System Shield | -6/Factory | Hacked Robot Schematics ------------------ S-27 Virus | -7/Data Miner | Free G-50 Soldier | -7/Data Miner | Free G-67 Veteran | -7/Data Miner | Free X-72 Disruptor | -7/Data Miner | Free H-66 Slayer | -7/Data Miner | Free I-36 Angel | -7/Data Miner | Free Fabricated ------------ Adv. Signal Interpreter | x2 | -7/Factory Field Propulsion Array | x2 | -7/Factory Mni. Smartbomb Launcher | x1 | -6/Factory Exp. Utility Shielding | x1 | -6/Factory Exp. Cesium-ion Thruster | x1 | -6/Factory Exp. Cesium-ion Thruster | x1 | -6/Factory Exp. Signal Interpreter | x1 | -6/Factory Alien Tech Used ----------------- None Achievements -------------- None Challenges ------------ None Game ------ Seed HelicalMediumWheel Manual? 0 Play Time 04:44:28 Cumulative 318.9 hours Start 2021.02.14 @ 13:38:57 End 2021.02.15 @ 20:07:45 Sessions 7 Manual Loads 0 Difficulty Rogue Special Mode None Game No. 109 Rogue 105 Adventurer 4 Explorer 0 Win Type - Total 6 Types 3/1/2/0/0/0/0/0/0 Lore% 73 Gallery% 78 Achievement% 63 Wizard Run 0 Options --------- ASCII 1 Keyboard 0 Movement Arrows Keybinds 0 Fullscreen 1 Font 18/SmallcapsGlow Map View 76x50 Tactical HUD 1 Map Filters NONE Filters NONE Steam 1 RUN: 5e085a06-c9f4-49ec-a66d-d9eb1f880119